bitfinex-derivatives/quotes_ETHF0:USTF0_20250404
["timestamp","ask_amount","ask_price","bid_price","bid_amount"]
[1743776265805,5.71836,1790.6,1790.5,0.00838339]
[1743776266518,8.21836,1790.6,1790.5,0.00309181]
[1743776267204,6.0906,1790.6,1790.5,0.00309181]
[1743776267608,7.20796,1790.6,1790.5,0.00309181]
[1743776268004,6.0906,1790.6,1790.5,0.00309181]
[1743776268207,4.601,1790.6,1790.5,0.00309181]
[1743776268413,5.71836,1790.6,1790.5,0.00309181]
[1743776268610,7.101,1790.6,1790.0,40.8]
[1743776268913,1.11768,1790.1,1790.0,40.8]
[1743776269417,1.3988,1790.1,1790.0,40.8]
[1743776269712,2.51648,1790.1,1790.0,40.8]
[1743776270116,1.3988,1790.1,1790.0,40.8]
[1743776270313,5.72428,1790.1,1790.0,40.8]
[1743776270818,8.22428,1790.1,1790.0,40.8]
[1743776271210,5.72428,1790.1,1790.0,40.8]
[1743776272922,2.51648,1790.1,1790.0,40.8]
[1743776273113,1.3988,1790.1,1790.0,42.2855]
[1743776273418,5.72428,1790.1,1790.0,40.8]
[1743776275414,2.51648,1790.1,1790.0,42.2718]
[1743776276113,1.11768,1790.1,1790.0,42.2718]
[1743776276915,4.32548,1790.1,1790.0,40.8]
[1743776277123,2.57515,1790.2,1790.0,40.8]
[1743776277313,3.2078,1790.3,1790.1,5.99868]
[1743776277516,1.11755,1790.3,1790.2,1.4417]
[1743776278820,1.11761,1790.2,1790.1,4.881]
[1743776279021,1.11768,1790.1,1790.0,40.8]
[1743776279216,4.32548,1790.1,1790.0,40.8]
[1743776279416,1.11774,1790.0,1789.9,0.00838339]
[1743776279917,3.61774,1790.0,1789.9,3.39e-06]
[1743776280119,2.62364,1790.0,1789.9,3.39e-06]
[1743776280415,1.11774,1790.0,1789.9,40.80000339]
[1743776281225,1.11774,1790.0,1789.9,45.68000339]
[1743776281525,3.2078,1790.1,1789.9,48.90915398]
[1743776281827,2.79375,1790.4,1790.0,2.17584231]
[1743776282022,1.11763,1790.2,1790.0,2.5644]
[1743776282215,1.11761,1790.2,1790.1,0.72862353]
[1743776282515,0.00521092,1790.7,1790.1,0.72862353]
[1743776282716,1.11738,1790.6,1790.4,1.11746]
[1743776282921,1.11738,1790.6,1790.5,7.05532353]
[1743776283119,1.12255092,1790.7,1790.5,6.3267]
[1743776283323,0.00521092,1790.7,1790.5,6.3267]
[1743776283524,1.11736,1790.6,1790.5,6.3267]
[1743776283722,0.00521092,1790.7,1790.5,8.17426861]
[1743776283919,0.00521092,1790.7,1790.3,4.88]
[1743776284222,4.32521,1790.6,1790.4,0.73063914]
[1743776284427,3.2078,1790.6,1790.5,0.73268079]
[1743776284725,4.32516,1790.6,1790.5,41.53279347]
[1743776285028,0.00521092,1790.7,1790.6,1.11736]
[1743776285229,0.00521092,1790.7,1790.6,3.28935347]
[1743776285427,1.4391,1791.3,1790.6,4.67199347]
[1743776285725,4.32476,1791.3,1790.9,1.11717]
[1743776285923,1.11705,1791.1,1791.0,0.73279347]
[1743776286520,2.5,1791.1,1790.5,40.8]
[1743776286720,1.11764,1790.2,1789.9,1.11774]
[1743776286921,3.2078,1790.1,1789.8,4.879]
[1743776287124,3.2078,1790.1,1789.9,40.80838339]
[1743776287325,1.11774,1790.0,1789.9,0.00838339]
[1743776287723,3.61774,1790.0,1789.9,0.00838339]
[1743776288124,3.61774,1790.0,1789.0,1.11832]
[1743776288125,2.79507,1789.6,1789.0,1.11832]
[1743776288426,1.11801,1789.6,1788.9,4.6176]
[1743776288625,8.0858,1789.7,1789.3,1.11813]
[1743776288819,1.11813,1789.4,1789.2,1.1182]
[1743776289024,3.2078,1789.5,1789.4,1.11811]
[1743776289225,1.11818,1789.3,1789.2,1.4098]
[1743776289422,1.11824,1789.2,1789.1,0.00838339]
[1743776289628,1.11874,1788.4,1788.3,8.61247459]
[1743776289827,4.32632,1788.8,1788.3,8.61247459]
[1743776290032,3.2078,1788.8,1788.4,42.2921]
[1743776290228,1.11845,1788.9,1788.4,42.2921]
[1743776290537,9.6545,1789.2,1788.6,3.2078]
[1743776290538,1.4216,1789.2,1788.6,3.2078]
[1743776290832,3.2078,1789.4,1788.7,2.61065]
[1743776290833,0.00838339,1788.8,1788.7,2.61065]
[1743776291133,0.00838339,1788.8,1788.7,7.48865]
[1743776291332,3.2078,1789.6,1788.7,8.8701]
[1743776291533,3.2078,1789.6,1788.9,3.2078]
[1743776291835,3.2078,1789.9,1789.0,1.4921]
[1743776292032,3.2078,1789.7,1789.1,4.878]
[1743776292225,3.2078,1789.7,1789.2,1.4921]
[1743776292530,0.00838339,1789.6,1789.2,1.4921]
[1743776292741,0.00838339,1789.6,1789.3,1.11814]
[1743776293028,0.00838339,1789.6,1789.5,1.11805]
[1743776293228,1.12637339,1789.6,1789.5,4.878]
[1743776293929,0.00838339,1789.6,1789.5,4.878]
[1743776294129,0.00838339,1789.6,1789.5,45.678]
[1743776294635,0.00838339,1789.6,1789.5,47.2098]
[1743776294937,0.00838339,1789.6,1789.5,48.32785]
[1743776295128,0.00838339,1789.6,1789.5,47.2098]
[1743776295936,0.00838339,1789.6,1789.5,48.32785]
[1743776296236,0.00838339,1789.6,1789.5,47.2098]
[1743776296839,3.21618339,1789.6,1789.5,47.2098]
[1743776297040,4.33417339,1789.6,1789.5,45.678]
[1743776297231,4.33417339,1789.6,1789.5,40.8]
[1743776297435,6.83417339,1789.6,1789.5,40.8]
[1743776298133,8.34827339,1789.6,1789.5,40.8]
[1743776298641,8.34827339,1789.6,1788.5,3.21618339]
[1743776298642,7.23028339,1789.6,1788.5,3.21618339]
[1743776298841,1.11859,1788.7,1788.5,1.12703339]
[1743776299039,2.65011,1788.6,1788.5,0.00838339]
[1743776299241,5.85791,1788.6,1788.5,0.00838339]
[1743776299742,1.5315,1788.6,1788.5,40.80838339]
[1743776299939,3.2078,1788.8,1788.5,45.68738339]
[1743776300139,4.32641,1788.6,1788.5,40.80838339]
[1743776300332,4.32641,1788.6,1788.5,3.39e-06]
[1743776300538,12.26461,1788.6,1788.5,3.39e-06]
[1743776303137,12.26461,1788.6,1788.0,40.8]
[1743776303138,1.11911,1787.8,1787.7,8.61247459]
[1743776303343,4.32691,1787.8,1787.7,7.46354459]
[1743776303541,1.11918,1787.7,1787.6,3.66985268]
[1743776303736,4.32704,1787.6,1787.5,2.39854566]
[1743776303940,4.32704,1787.6,1786.7,1.4305]
[1743776303941,1.1193,1787.5,1787.4,19.79953653]
[1743776304248,1.1193,1787.5,1787.4,17.40134653]
[1743776304436,3.6193,1787.5,1787.4,17.40134653]
[1743776305241,3.6193,1787.5,1787.4,15.81420653]
[1743776305442,3.6193,1787.5,1787.4,12.79211653]
[1743776305648,3.6193,1787.5,1787.4,11.16783653]
[1743776305839,3.6193,1787.5,1787.4,7.74091653]
[1743776306035,3.6193,1787.5,1787.4,6.46476653]
[1743776306435,3.6193,1787.5,1787.4,46.04051653]
[1743776306836,5.1561,1787.5,1787.4,46.04051653]
[1743776307248,5.1561,1787.5,1787.4,44.33753653]
[1743776307543,5.1561,1787.5,1787.3,0.00838339]
[1743776307743,5.1561,1787.5,1787.3,3.39e-06]
[1743776307744,4.32716,1787.4,1787.3,3.39e-06]
[1743776308046,5.81186,1787.4,1787.3,3.39e-06]
[1743776308245,4.32716,1787.4,1787.3,40.80000339]
[1743776309043,0.00838339,1787.6,1787.4,1.11933]
[1743776309244,1.1193,1787.5,1787.4,7.05610796]
[1743776309451,1.12766339,1787.6,1787.5,5.59360796]
[1743776309753,1.12766339,1787.6,1787.5,7.05610796]
[1743776310446,1.12766339,1787.6,1787.5,1.4625]
[1743776310643,0.00838339,1787.6,1787.5,8.17540796]
[1743776310844,0.00838339,1787.6,1787.5,7.05610796]
[1743776311146,1.12762339,1787.6,1787.5,7.05610796]
[1743776311651,1.12762339,1787.6,1787.5,1.4625]
[1743776311950,0.00838339,1787.6,1787.5,8.17540796]
[1743776312147,1.12762339,1787.6,1787.5,7.05610796]
[1743776312345,0.00838339,1787.6,1787.5,8.17540796]
[1743776312644,3.2078,1788.1,1787.5,12.35430796]
[1743776312843,3.2078,1787.9,1787.6,6.71282796]
[1743776313062,3.2078,1787.9,1787.7,1.4675]
[1743776313246,1.1191,1787.9,1787.7,7.06110796]
[1743776313447,1.11905,1787.9,1787.8,5.59360796]
[1743776313645,8.66228251,1787.9,1787.8,5.59360796]
[1743776313838,4.33543251,1787.9,1787.8,6.71271796]
[1743776314046,6.51153216,1788.0,1787.8,5.59360796]
[1743776314248,6.51153216,1788.0,1787.9,12.02710796]
[1743776314551,6.51153216,1788.0,1787.9,7.55255]
[1743776314847,6.51153216,1788.0,1787.9,12.02710796]
[1743776315050,6.51153216,1788.0,1787.9,15.64615796]
[1743776315547,7.63052216,1788.0,1787.9,7.14510796]
[1743776315750,6.51153216,1788.0,1787.9,8.26415796]
[1743776315950,6.51153216,1788.0,1787.9,13.14615796]
[1743776316551,1.83843216,1788.0,1787.9,15.64615796]
[1743776316747,5.82461,1788.7,1788.0,2.7974]
[1743776317050,1.11863,1788.6,1788.4,1.1187]
[1743776317246,3.2078,1788.7,1788.5,40.8]
[1743776317548,3.2078,1788.9,1788.8,1.11849]
[1743776317850,6.49121426,1789.0,1788.6,5.59360796]
[1743776318048,6.49959765,1789.0,1788.9,1.11843]
[1743776318245,6.49959765,1789.0,1788.7,5.60199135]
[1743776318550,1.11843,1788.9,1788.8,5.59360796]
[1743776318745,1.11849,1788.8,1788.7,0.00838339]
[1743776318946,2.79667,1788.6,1787.9,3.2078]
[1743776319250,1.11884,1788.3,1788.0,6.71253796]
[1743776319450,3.2078,1788.4,1788.0,46.39360796]
[1743776319649,3.2078,1788.4,1788.1,7.08080796]
[1743776319650,1.11886,1788.2,1788.1,7.08080796]
[1743776320051,4.6114,1788.3,1788.1,7.08080796]
[1743776320251,3.2078,1788.5,1788.2,7.07280796]
[1743776320454,3.2078,1788.3,1788.2,7.07280796]
[1743776320648,4.3266,1788.3,1788.2,5.59360796]
[1743776321154,1.11886,1788.2,1788.1,1.4792]
[1743776321349,2.53866,1788.2,1788.1,5.59360796]
[1743776321750,3.35735,1788.1,1787.1,0.42030582]
[1743776321951,1.11949,1787.2,1787.1,0.42030582]
[1743776322455,1.11968,1786.9,1786.8,1.4792]
[1743776322753,1.11961,1787.0,1786.9,5.59360796]
[1743776323155,4.33576339,1787.1,1786.9,6.71324796]
[1743776323347,3.21618339,1787.1,1787.0,5.59360796]
[1743776323654,4.33573339,1787.1,1787.0,7.05270796]
[1743776323954,3.21618339,1787.1,1787.0,7.05270796]
[1743776324144,0.00838339,1787.1,1787.0,8.17231796]
[1743776324849,0.00838339,1787.1,1787.0,8.18070135]
[1743776326348,1.12793339,1787.1,1787.0,1.4591]
[1743776327342,1.12793339,1787.1,1787.0,7.05270796]
[1743776327548,0.00838339,1787.1,1787.0,8.17231796]
[1743776327744,2.79801,1787.7,1787.3,1.11942]
[1743776327947,1.11935,1787.5,1787.4,1.544]
[1743776328448,4.32715,1787.5,1787.4,42.344]
[1743776328953,4.32715,1787.5,1787.4,47.93760796]
[1743776328954,1.1193,1787.5,1787.4,47.93760796]
[1743776329153,1.1193,1787.5,1787.4,49.05696796]
[1743776329559,0.00838339,1787.6,1787.4,49.05696796]
[1743776329855,0.00838339,1787.6,1787.5,6.71290796]
[1743776330049,0.00838339,1787.6,1787.5,8.11690796]
[1743776330854,4.32675,1788.1,1787.6,2.7981]
[1743776331056,2.79716,1788.3,1788.0,1.11899]
[1743776331057,1.11891,1788.2,1788.0,1.11899]
[1743776331556,3.2078,1788.3,1788.2,1.11886]
[1743776331855,1.11886,1788.2,1788.1,2.52293]
[1743776332050,1.11886,1788.2,1788.1,7.00599135]
[1743776332255,1.11884,1788.3,1788.2,1.11886]
[1743776332457,0.00838339,1788.4,1788.3,1.1188]
[1743776332652,0.00838339,1788.4,1788.3,6.72079135]
[1743776332852,15.47208129,1788.9,1788.7,1.11855]
[1743776333052,14.04638129,1788.9,1788.7,41.91855]
[1743776333251,14.04638129,1788.9,1788.7,47.51215796]
[1743776333448,11.87866503,1789.1,1788.8,1.11849]
[1743776333654,1.11837,1789.0,1788.9,1.4042]
[1743776333859,1.11837,1789.0,1788.9,6.99780796]
[1743776334855,1.11846,1788.9,1788.8,1.11849]
[1743776335152,3.2078,1788.9,1788.8,5.59360796]
[1743776335454,3.2078,1788.9,1788.8,8.21769796]
[1743776335664,4.32623,1788.9,1788.8,5.59360796]
[1743776335852,5.83493,1788.9,1788.8,5.59360796]
[1743776336052,5.83493,1788.9,1788.8,7.09920796]
[1743776336249,4.7165,1788.9,1788.8,5.59360796]
[1743776336551,3.21618339,1789.1,1788.9,1.11843]
[1743776336859,0.00838339,1789.1,1789.0,5.99836]
[1743776337056,0.00838339,1789.1,1789.0,14.72836796]
[1743776337556,1.12668339,1789.1,1789.0,52.77920796]
[1743776337761,4.33448339,1789.1,1789.0,40.8]
[1743776338064,4.33448339,1789.1,1789.0,46.39360796]
[1743776338362,1.11849,1788.8,1788.7,1.5056]
[1743776338558,3.2078,1788.8,1788.7,5.59360796]
[1743776338953,1.4902,1789.0,1788.7,5.59360796]
[1743776339154,1.12674339,1789.1,1788.9,1.11841]
[1743776339352,4.32616,1789.0,1788.9,1.6279]
[1743776339550,3.2078,1789.0,1788.9,2.74633]
[1743776339761,4.32616,1789.0,1788.9,7.22150796]
[1743776339956,3.2078,1789.0,1788.9,8.33993796]
[1743776340258,1.11858,1788.7,1788.5,1.11862]
[1743776340458,4.32638,1788.7,1788.6,7.22150796]
[1743776341166,1.11874,1788.4,1788.2,1.5245]
[1743776341351,5.87914,1788.6,1788.4,6.71231796]
[1743776341550,1.11868,1788.5,1788.4,7.18150796]
[1743776341754,1.11868,1788.5,1788.3,40.80838339]
[1743776341755,1.11874,1788.4,1788.3,40.8]
[1743776341959,1.11874,1788.4,1788.3,47.51240796]
[1743776342155,4.32654,1788.4,1788.3,40.8]
[1743776342362,1.11886,1788.2,1788.1,0.00838339]
[1743776342551,1.11919,1787.7,1787.6,1.11922]
[1743776342757,4.32698,1787.7,1787.6,5.59360796]
[1743776342953,4.32698,1787.7,1787.6,46.39360796]
[1743776343257,1.11918,1787.7,1787.6,46.39360796]
[1743776343455,4.32698,1787.7,1787.6,46.39360796]
[1743776343651,1.11904,1788.0,1787.6,46.39360796]
[1743776343864,4.33529339,1787.8,1787.7,7.18150796]
[1743776344061,1.12749339,1787.8,1787.7,8.30068796]
[1743776344256,1.12749339,1787.8,1787.7,7.18150796]
[1743776344458,4.33529339,1787.8,1787.7,5.59360796]
[1743776344758,1.11918,1787.7,1787.6,40.8]
[1743776344956,13.39303339,1787.8,1787.5,0.00838339]
[1743776345260,0.00838339,1787.8,1787.6,5.59360796]
[1743776345450,0.00838339,1787.8,1787.7,46.79818]
[1743776345657,3.06887368,1788.2,1788.1,1.11893]
[1743776345852,9.52260515,1788.3,1788.2,1.11886]
[1743776346162,9.52260515,1788.3,1788.2,2.66266]
[1743776346460,9.52260515,1788.3,1788.2,5.16266]
[1743776346964,0.00838339,1788.4,1788.3,1.1188]
[1743776347167,47.23626517,1788.9,1788.8,1.11849]
[1743776347463,47.23626517,1788.9,1788.8,5.99649]
[1743776347661,47.23626517,1788.9,1788.8,45.678]
[1743776347864,47.23626517,1788.9,1788.8,46.79649]
[1743776348057,37.23626517,1788.9,1788.8,46.79649]
[1743776348364,37.23626517,1788.9,1788.8,49.29649]
[1743776349159,0.00308503,1789.0,1788.9,1.11843]
[1743776349363,1.5323,1789.2,1789.1,1.1183]
[1743776349667,1.6440818,1789.2,1789.1,1.1183]
[1743776350073,1.6440818,1789.2,1789.1,41.9183]
[1743776350362,1.6440818,1789.2,1789.1,40.8]
[1743776350763,1.6440818,1789.2,1789.1,41.9183]
[1743776351057,8.4701218,1789.2,1789.1,39.59137]
[1743776351360,1.11877,1788.4,1788.1,1.11891]
[1743776351567,3.35497,1789.1,1788.2,1.11886]
[1743776351568,1.477,1788.3,1788.2,1.11886]
[1743776351769,1.477,1788.3,1788.2,41.91886]
[1743776351954,1.477,1788.3,1788.2,40.8]
[1743776352161,1.477,1788.3,1788.2,41.91886]
[1743776353154,0.00838338,1788.4,1788.3,1.1188]
[1743776353354,0.00838338,1788.4,1788.3,5.9958]
[1743776353767,1.59548338,1788.4,1788.3,5.9958]
[1743776354363,2.71422338,1788.4,1788.3,4.877]
[1743776354565,2.71427338,1788.4,1788.2,41.91886]
[1743776354869,4.3266,1788.3,1788.2,40.8]
[1743776355167,5.9137,1788.3,1788.2,40.8]
[1743776355368,1.5871,1788.3,1788.2,40.8]
[1743776355570,1.5871,1788.3,1788.2,44.41886]
[1743776356165,1.5871,1788.3,1788.2,41.91886]
[1743776356657,1.5871,1788.3,1788.2,46.79586]
[1743776356862,1.5871,1788.3,1788.2,41.91886]
[1743776357465,1.5871,1788.3,1788.2,42.28546]
[1743776357658,3.2078,1789.0,1788.2,46.8744]
[1743776357864,1.4875,1788.9,1788.8,1.11849]
[1743776358075,3.2078,1789.4,1788.8,9.56989]
[1743776358264,3.2078,1789.2,1789.1,1.11826]
[1743776358461,3.2078,1789.2,1789.1,5.99526]
[1743776358676,1.4875,1789.2,1789.1,5.99526]
[1743776358865,2.9771,1789.7,1789.1,9.20306]
[1743776359065,3.2078,1790.1,1790.0,1.11772]
[1743776359268,18.14837948,1790.3,1790.1,1.11768]
[1743776359470,14.94057948,1790.3,1790.1,1.11768]
[1743776359769,14.94057948,1790.3,1790.1,41.91768]
[1743776360271,14.94057948,1790.3,1790.1,43.39608]
[1743776361676,14.94057948,1790.3,1790.1,41.91768]
[1743776362273,1.5113,1790.3,1790.2,1.11761]
[1743776362573,1.5113,1790.3,1790.2,5.99261]
[1743776362769,5.83665,1790.3,1790.2,4.875]
[1743776363168,1.5113,1790.3,1790.2,4.875]
[1743776363473,1.5113,1790.3,1790.2,5.99261]
[1743776363769,3.2078,1791.2,1790.4,2.7936]
[1743776363977,3.2078,1791.2,1791.0,1.1171]
[1743776364268,3.2078,1791.2,1791.0,5.9921]
[1743776364269,1.4896,1791.1,1791.0,5.9921]
[1743776364975,13.00629755,1791.3,1791.2,1.11699]
[1743776365275,13.00629755,1791.3,1790.9,4.88138339]
[1743776365470,1.4896,1791.2,1790.9,4.88138339]
[1743776365670,1.4896,1791.2,1791.1,41.91705]
[1743776365868,4.34062,1791.7,1791.3,1.11687]
[1743776366071,1.4917,1791.4,1791.3,5.98987]
[1743776366271,1.4917,1791.4,1791.3,4.873]
[1743776366476,1.4917,1791.4,1791.1,40.8]
[1743776366776,1.11693,1791.3,1791.1,45.673]
[1743776366977,4.6995,1791.2,1791.1,45.673]
[1743776367174,1.4917,1791.2,1791.1,4.873]
[1743776367577,4.8002,1791.7,1791.2,2.79248]
[1743776367776,1.4917,1791.6,1791.4,1.11682]
[1743776368078,1.4917,1791.6,1791.5,4.873]
[1743776368282,1.4917,1791.6,1791.5,5.9898]
[1743776369175,1.4917,1791.6,1791.5,4.873]
[1743776369375,1.4917,1791.6,1791.5,5.9898]
[1743776370177,3.2078,1792.6,1791.9,2.79134]
[1743776370477,0.5584,1792.9,1792.4,3.2078]
[1743776370668,1.5551,1793.0,1792.5,45.672]
[1743776370879,1.5551,1793.0,1792.6,3.2078]
[1743776371178,1.5551,1793.0,1792.9,1.11593]
[1743776371377,1.5551,1793.0,1792.7,4.32381]
[1743776371686,1.5551,1793.0,1792.1,0.00838339]
[1743776371687,4.32378,1792.9,1792.5,1.5952]
[1743776371978,3.2078,1792.7,1792.5,1.11613]
[1743776372180,3.2078,1792.7,1792.6,4.87]
[1743776372782,1.11616,1792.6,1792.4,4.87]
[1743776373093,4.32387,1792.7,1792.4,4.87]
[1743776373282,4.32398,1792.5,1792.4,4.87]
[1743776373676,1.11627,1792.4,1792.1,1.12477339]
[1743776373878,4.32417,1792.2,1792.1,0.00838339]
[1743776374386,5.7078,1792.2,1791.6,4.87]
[1743776374686,3.2078,1792.2,1791.7,2.7917]
[1743776374888,3.2078,1792.4,1791.8,2.79155]
[1743776375178,3.2078,1792.6,1792.5,1.11615]
[1743776375388,4.32374,1792.9,1792.6,1.11607]
[1743776375687,0.00838339,1792.7,1792.6,1.11607]
[1743776376073,0.00838339,1792.7,1792.6,41.91607]
[1743776376579,1.5816,1793.4,1793.3,1.11568]
[1743776376982,3.2078,1793.7,1793.6,1.11549]
[1743776377284,3.31930136,1793.7,1793.6,1.11549]
[1743776377482,3.31930136,1793.7,1793.6,41.91549]
[1743776377786,0.11150136,1793.7,1793.6,41.91549]
[1743776378182,0.11150136,1793.7,1793.6,40.8]
[1743776378381,4.43473136,1793.7,1793.6,40.8]
[1743776378585,6.93473136,1793.7,1793.6,40.8]
[1743776378880,4.43473136,1793.7,1793.6,40.8]
[1743776379285,1.11549,1793.6,1793.5,0.00838339]
[1743776379784,3.31930136,1793.7,1793.5,40.80838339]
[1743776379985,1.11549,1793.6,1793.5,0.00838339]
[1743776380382,4.43477136,1793.7,1793.5,0.00838339]
[1743776380574,1.11549,1793.6,1793.5,0.00838339]
[1743776380779,3.61549,1793.6,1793.5,0.00838339]
[1743776380974,1.11574,1793.3,1793.0,1.11587]
[1743776381186,3.2078,1793.1,1793.0,1.11587]
[1743776381484,3.2078,1793.1,1792.7,7.65611]
[1743776381485,3.2078,1793.1,1792.7,4.866]
[1743776381683,3.2078,1793.1,1793.0,1.11587]
[1743776382180,3.2078,1793.1,1792.9,1.12429339]
[1743776382387,1.11587,1793.0,1792.9,0.00838339]
[1743776383084,3.2078,1793.1,1792.9,0.00838339]
[1743776383283,1.11587,1793.0,1792.9,1.12429339]
[1743776383684,4.32361,1793.1,1792.9,0.00838339]
[1743776383880,1.11587,1793.0,1792.9,0.00838339]
[1743776384085,2.74427,1793.0,1792.9,0.00838339]
[1743776384583,1.6284,1793.0,1792.9,0.00838339]
[1743776384992,2.74427,1793.0,1792.9,0.00838339]
[1743776385991,2.74427,1793.0,1792.9,40.80838339]
[1743776386187,1.6284,1793.0,1792.9,41.92431339]
[1743776386688,2.74427,1793.0,1792.9,40.80838339]
[1743776387889,1.6284,1793.0,1792.9,40.80838339]
[1743776388097,0.00838339,1793.2,1793.1,1.11581]
[1743776388290,2.63342339,1793.2,1793.1,1.11581]
[1743776388597,1.51768339,1793.2,1792.9,47.23438339]
[1743776388786,1.51768339,1793.2,1793.1,1.11581]
[1743776389292,2.63342339,1793.2,1793.1,1.11581]
[1743776389493,1.51768339,1793.2,1793.1,1.11581]
[1743776390191,0.00838339,1793.2,1793.1,3.61581]
[1743776390491,0.00838339,1793.2,1793.1,6.82361]
[1743776390792,0.00838339,1793.2,1793.1,3.61581]
[1743776391089,0.00838339,1793.2,1793.0,1.11583]
[1743776391291,0.00838339,1793.2,1793.1,4.864]
[1743776391486,1.11587,1793.0,1792.9,40.80838339]
[1743776391790,1.11587,1793.0,1792.9,45.67238339]
[1743776391991,1.64298339,1793.2,1792.9,45.67238339]
[1743776392190,2.75874339,1793.2,1792.9,45.67238339]
[1743776392385,1.64298339,1793.2,1793.1,1.11581]
[1743776392586,0.00838339,1793.2,1793.1,1.11581]
[1743776392894,4.32325,1793.7,1793.1,6.82361]
[1743776393085,3.2078,1793.5,1793.3,1.11566]
[1743776393291,1.5926,1793.4,1793.3,1.11566]
[1743776393486,1.5926,1793.4,1793.3,4.864]
[1743776394295,1.1157,1793.3,1793.0,1.11582]
[1743776394495,5.91616,1793.2,1793.0,4.864]
[1743776394795,5.91615,1793.2,1793.0,5.97984]
[1743776395091,5.91615,1793.2,1793.0,4.864]
[1743776395293,5.91619,1793.2,1793.0,4.864]
[1743776395604,4.8004,1793.2,1793.0,4.864]
[1743776395800,5.91615,1793.2,1793.0,4.864]
[1743776396090,1.11587,1793.0,1792.9,40.80838339]
[1743776396293,4.32367,1793.0,1792.9,40.80838339]
[1743776396496,6.82367,1793.0,1792.9,40.80838339]
[1743776396890,6.82367,1793.0,1792.1,5.90456]
[1743776396891,7.3569,1793.0,1792.1,7.9765]
[1743776397089,4.32379,1792.8,1792.7,1.11605]
[1743776397293,1.11607,1792.7,1792.6,1.11607]
[1743776397491,1.11619,1792.5,1792.4,1.11619]
[1743776397687,1.6491,1792.6,1792.5,1.11618]
[1743776397887,3.2078,1792.9,1792.7,1.11601]
[1743776398185,3.2078,1792.9,1792.8,1.11599]
[1743776398390,4.32377,1792.9,1792.8,1.11599]
[1743776398594,0.00838339,1793.0,1792.9,1.11593]
[1743776399094,1.54498339,1793.0,1792.9,1.11593]
[1743776399288,2.66085339,1793.0,1792.9,1.11593]
[1743776399488,1.54498339,1793.0,1792.9,1.11593]
[1743776399988,1.11599,1792.9,1792.8,1.11598]
[1743776400194,5.99765,1792.9,1792.5,45.663]
[1743776400393,4.32392,1792.6,1792.5,40.8]
[1743776400700,1.5366,1792.8,1792.7,1.11605]
[1743776400898,0.00838339,1793.0,1792.6,2.79021]
[1743776401197,0.00838339,1793.0,1792.9,1.11593]
[1743776401394,0.00838339,1793.0,1792.9,5.97993]
[1743776401990,0.00838339,1793.0,1792.9,46.77993]
[1743776402892,3.39e-06,1793.0,1792.9,49.27993]
[1743776403494,3.39e-06,1793.0,1792.9,52.48773]
[1743776403698,3.2078,1793.9,1792.9,58.68335623]
[1743776403898,1.11532,1793.9,1793.5,3.2078]
[1743776404091,1.5527,1793.9,1793.8,1.11537]
[1743776404299,4.8221,1794.4,1793.9,1.11531]
[1743776404601,2.66782,1794.3,1793.7,2.78855]
[1743776404787,3.2078,1794.2,1794.0,40.80838339]
[1743776404991,2.66788,1794.1,1794.0,40.80838339]
[1743776405299,7.53088,1794.1,1794.0,0.00838339]
[1743776405597,2.78843,1793.8,1793.4,1.11561]
[1743776405799,3.2078,1793.5,1793.1,1.11576]
[1743776405998,1.11576,1793.2,1793.1,1.11578]
[1743776406298,2.78945,1793.2,1792.8,40.8]
[1743776406501,4.32373,1792.9,1792.8,40.8]
[1743776406802,4.32373,1792.9,1792.8,40.80838339]
[1743776406994,3.2078,1792.9,1792.8,41.92437339]
[1743776407193,4.32373,1792.9,1792.8,40.80838339]
[1743776407398,3.2078,1793.1,1792.8,40.80838339]
[1743776407700,3.2078,1793.1,1793.0,1.11587]
[1743776408501,0.00838339,1793.2,1793.1,1.11581]
[1743776408700,0.00838339,1793.2,1793.1,5.97881]
[1743776409001,3.2078,1793.7,1793.6,1.11549]
[1743776409189,1.5533,1794.0,1793.9,1.11531]
[1743776409508,4.7611,1794.0,1793.9,41.91531]
[1743776409898,5.87635,1794.0,1793.9,40.8]
[1743776410098,4.7611,1794.0,1793.9,41.91531]
[1743776410297,5.87635,1794.0,1793.9,40.8]
[1743776410695,4.7611,1794.0,1793.9,40.8]
[1743776411202,8.37635,1794.0,1793.9,40.8]
[1743776411393,1.11531,1793.9,1793.8,0.00838339]
[1743776411593,4.25981,1793.9,1793.8,0.00838339]
[1743776411798,6.75981,1793.9,1793.8,0.00838339]
[1743776412000,4.25981,1793.9,1793.8,0.00838339]
[1743776412606,4.25981,1793.9,1793.8,1.12375339]
[1743776412607,1.5356,1793.9,1793.8,1.12375339]
[1743776412906,1.11521,1794.1,1793.9,1.11527]
[1743776413100,4.32301,1794.1,1793.9,1.11527]
[1743776413397,1.5356,1794.0,1793.9,1.11531]
[1743776413603,1.5356,1794.0,1793.8,0.00838339]
[1743776413805,2.65089,1794.0,1793.8,1.12372339]
[1743776414000,1.11531,1793.9,1793.8,0.00838339]
[1743776414306,4.7756,1794.4,1793.8,0.00838339]
[1743776414510,1.5423,1794.2,1794.1,1.11518]
[1743776414700,1.6089,1794.5,1794.1,2.73438]
[1743776414901,2.6573,1794.4,1794.2,1.1151]
[1743776415106,1.5423,1794.4,1794.2,1.6192]
[1743776415310,1.5423,1794.4,1794.3,1.11506]
[1743776415509,1.5423,1794.4,1794.2,2.73427]
[1743776415804,1.11499,1794.5,1794.3,5.97705]
[1743776415999,1.11492,1794.6,1794.4,43.5342]
[1743776416195,1.5423,1794.7,1794.4,43.5342]
[1743776416196,2.65713,1794.7,1794.4,43.5342]
[1743776416403,1.5423,1794.7,1794.5,1.11493]
[1743776416604,1.5423,1794.7,1794.4,42.4192]
[1743776416605,1.5423,1794.7,1794.6,1.11487]
[1743776416903,3.2078,1794.8,1794.7,1.11481]
[1743776417103,1.5423,1795.0,1794.9,1.11469]
[1743776417414,17.32868755,1795.1,1794.9,41.91468]